[Event "Guimaraes Open 2019"]
[Site "Guimaraes"]
[Date "2019.09.01"]
[Round "7.7"]
[White "Garcia Romero, Benjamin Abel"]
[Black "Portela Peleteiro, Alberto"]
[Result "1/2-1/2"]
[ECO "A81"]
[WhiteElo "2164"]
[BlackElo "2375"]
[Annotator "NA"]
[PlyCount "60"]
[EventDate "2019.08.28"]
[EventType "swiss"]
[EventCountry "POR"]
[SourceTitle "playchess.com"]
[Source "ChessBase"]
[SourceQuality "1"]
[TimeControl "5400+30"]

1. d4 {[%emt 0:00:00]} f5 {[%emt 0:01:11]} 2. g3 {[%emt 0:00:54]} Nf6 {[%emt 0:00:50]} 3. Bg2 {[%emt 0:00:15]} g6 {[%emt 0:00:07]} 4. Nf3 {[%emt 0:00:08]} Bg7 {[%emt 0:00:05]} 5. O-O {[%emt 0:00:17]} O-O {[%emt 0:00:10]} 6. c4 {[%emt 0:03:44]} d6 {[%emt 0:00:04]} 7. b3 {[%emt 0:00:05]} e5 {[%emt 0:01:48]} 8. dxe5 {[%emt 0:02:47]} dxe5 {[%emt 0:00:41]} 9. Ba3 {[%emt 0:00:54]} Re8 {[%emt 0:00:43]} 10. Nc3 {[%emt 0:01:22]} e4 {[%emt 0:04:16]} 11. Nd4 {[%emt 0:04:01]} a6 {[%emt 0:08:46]} 12. Nc2 {[%emt 0:02:47]} b6 {[%emt 0:13:21]} 13. Qxd8 {[%emt 0:01:18]} Rxd8 {[%emt 0:00:09]} 14. Rad1 {[%emt 0:00:06]} Nc6 {[%emt 0:02:29]} 15. f3 {[%emt 0:01:01]} exf3 {[%emt 0:17:48]} 16. exf3 {[%emt 0:04:35]} Bb7 {[%emt 0:01:12]} 17. f4 {[%emt 0:00:17]} Rxd1 {[%emt 0:04:36]} 18. Rxd1 {[%emt 0:00:09]} Rd8 {[%emt 0:00:05]} 19. Rxd8+ {[%emt 0:06:24]} Nxd8 {[%emt 0:00:09]} 20. Be7 {[%emt 0:04:39]} Bxg2 {[%emt 0:01:34]} 21. Bxd8 {[%emt 0:00:43]} Ne8 {[%emt 0:00:35]} 22. Kxg2 {[%emt 0:00:44]} Bxc3 {[%emt 0:00:04]} 23. Ne3 {[%emt 0:00:13]} Bf6 {[%emt 0:02:12]} 24. Bxf6 {[%emt 0:00:27]} Nxf6 {[%emt 0:00:14]} 25. Kf3 {[%emt 0:00:49]} Kf7 {[%emt 0:00:06]} 26. Ke2 {[%emt 0:00:22]} Ke6 {[%emt 0:00:06]} 27. Kd3 {[%emt 0:00:15]} c5 {[%emt 0:00:19]} 28. Kc2 {[%emt 0:01:41]} Kd6 {[%emt 0:00:12]} 29. Kd3 {[%emt 0:00:09]} Ke6 {[%emt 0:00:04]} 30. Kc2 {[%emt 0:00:05] Ke5} Kd6 {[%emt 0:00:04]} 1/2-1/2

[Event "Guimaraes Open 2019"]
[Site "Guimaraes"]
[Date "2019.09.01"]
[Round "7.8"]
[White "Espineira Gonzalez, Diego"]
[Black "Prado Acebo, Ines"]
[Result "1-0"]
[ECO "C07"]
[WhiteElo "2362"]
[BlackElo "2142"]
[Annotator "NA"]
[PlyCount "71"]
[EventDate "2019.08.28"]
[EventType "swiss"]
[EventCountry "POR"]
[SourceTitle "playchess.com"]
[Source "ChessBase"]
[SourceQuality "1"]
[TimeControl "5400+30"]

1. e4 {[%emt 0:00:00]} e6 {[%emt 0:00:00]} 2. d4 {[%emt 0:00:21]} d5 {[%emt 0:00:00]} 3. Nd2 {[%emt 0:00:05]} c5 {[%emt 0:00:00]} 4. exd5 {[%emt 0:00:05]} Qxd5 {[%emt 0:00:16]} 5. Ngf3 {[%emt 0:00:16]} cxd4 {[%emt 0:00:09]} 6. Bc4 {[%emt 0:00:06]} Qd7 {[%emt 0:00:10]} 7. O-O {[%emt 0:00:12]} Nc6 {[%emt 0:00:07]} 8. Nb3 {[%emt 0:00:09]} Nf6 {[%emt 0:00:15]} 9. Nbxd4 {[%emt 0:00:30]} Nxd4 {[%emt 0:00:10]} 10. Nxd4 {[%emt 0:00:05]} a6 {[%emt 0:00:09]} 11. Bb3 {[%emt 0:00:08]} Bc5 {[%emt 0:00:50]} 12. Be3 {[%emt 0:07:35]} Qc7 {[%emt 0:02:55]} 13. Qe2 {[%emt 0:03:30]} O-O {[%emt 0:03:18]} 14. c3 {[%emt 0:00:09]} e5 {[%emt 0:06:38]} 15. Nc2 {[%emt 0:01:13]} Bg4 {[%emt 0:03:46]} 16. Qc4 {[%emt 0:03:47]} Rac8 {[%emt 0:01:30]} 17. Qxc5 {[%emt 0:00:07]} Qxc5 {[%emt 0:00:10]} 18. Bxc5 {[%emt 0:00:03]} Rxc5 {[%emt 0:00:06]} 19. Ne3 {[%emt 0:00:05]} Bd7 {[%emt 0:06:21]} 20. Rad1 {[%emt 0:01:03]} Rfc8 {[%emt 0:04:01]} 21. Rd2 {[%emt 0:01:44]} Kf8 {[%emt 0:06:51]} 22. Rfd1 {[%emt 0:01:58]} Ke8 {[%emt 0:04:45]} 23. f3 {[%emt 0:02:01]} a5 {[%emt 0:04:06]} 24. Nd5 {[%emt 0:03:23]} Nxd5 {[%emt 0:02:50]} 25. Bxd5 {[%emt 0:02:40]} Bc6 {[%emt 0:00:38]} 26. Bxc6+ {[%emt 0:00:04]} R5xc6 {[%emt 0:00:07]} 27. Re2 {[%emt 0:00:34]} f6 {[%emt 0:03:07]} 28. f4 {[%emt 0:00:29]} Kf8 {[%emt 0:00:59]} 29. fxe5 {[%emt 0:02:48]} Re8 {[%emt 0:03:23]} 30. Rd5 {[%emt 0:07:59]} a4 {[%emt 0:07:41]} 31. Ra5 {[%emt 0:01:45]} b5 {[%emt 0:07:39]} 32. a3 {[%emt 0:07:48]} Rb6 {[%emt 0:05:42]} 33. e6 {[%emt 0:03:18]} Ke7 {[%emt 0:11:39]} 34. Kf2 {[%emt 0:03:07]} Kd6 {[%emt 0:02:26]} 35. Ra7 {[%emt 0:00:54]} Re7 {[%emt 0:01:03]} 36. Rd2+ {[%emt 0:00:08] Kd5} 1-0

[Event "Guimaraes Open 2019"]
[Site "Guimaraes"]
[Date "2019.09.01"]
[Round "7.10"]
[White "Garcia Gimenez, Santiago"]
[Black "Nieves Cabanes, Jose Manuel"]
[Result "0-1"]
[ECO "C04"]
[WhiteElo "2161"]
[BlackElo "2311"]
[Annotator "NA"]
[PlyCount "144"]
[EventDate "2019.08.28"]
[EventType "swiss"]
[EventCountry "POR"]
[SourceTitle "playchess.com"]
[Source "ChessBase"]
[SourceQuality "1"]
[TimeControl "5400+30"]

1. e4 {[%emt 0:00:00]} e6 {[%emt 0:00:00]} 2. d4 {[%emt 0:00:00]} d5 {[%emt 0:00:00]} 3. Nd2 {[%emt 0:00:05]} Nc6 {[%emt 0:00:00]} 4. Ngf3 {[%emt 0:00:07]} Nf6 {[%emt 0:00:39]} 5. e5 {[%emt 0:00:16]} Nd7 {[%emt 0:00:07]} 6. c3 {[%emt 0:00:11]} f6 {[%emt 0:00:30]} 7. exf6 {[%emt 0:00:06]} Qxf6 {[%emt 0:00:07]} 8. Bb5 {[%emt 0:00:26]} Bd6 {[%emt 0:02:30]} 9. O-O {[%emt 0:00:59]} O-O {[%emt 0:01:41]} 10. Qe2 {[%emt 0:03:43]} e5 {[%emt 0:01:54] C04: French Tarrasch: 3...Nc6} 11. dxe5 {[%emt 0:06:42]} Ndxe5 {[%emt 0:00:36]} 12. Nxe5 {[%emt 0:00:38]} Nxe5 {[%emt 0:00:29]} 13. h3 $146 {[%emt 0:01:28]} ({Predecessor:} 13. f4 Ng4 14. Nf3 Bxf4 15. Bxf4 Qxf4 16. Rae1 c6 17. Bd3 Bd7 18. Qe7 {0-1 (36) Femiano,A (2163)-Naumkin,I (2498) Ischia 2000}) 13... c6 {[%emt 0:02:48]} 14. Bd3 {[%emt 0:05:13]} Nxd3 {[%emt 0:02:55]} 15. Qxd3 {[%emt 0:00:06]} Bf5 {[%emt 0:00:13]} 16. Qd4 {[%emt 0:01:29]} Qxd4 {[%emt 0:04:18]} 17. cxd4 {[%emt 0:00:02]} Rae8 {[%emt 0:00:25]} 18. Nb3 {[%emt 0:01:57]} Re2 {[%emt 0:05:04]} 19. Bd2 {[%emt 0:01:13]} b6 {[%emt 0:10:20]} 20. Rae1 {[%emt 0:01:14]} Rxe1 {[%emt 0:00:30]} 21. Rxe1 {[%emt 0:00:02]} c5 {[%emt 0:00:23]} 22. Bc3 {[%emt 0:02:08]} c4 {[%emt 0:04:28]} 23. Nd2 {[%emt 0:00:12]} a5 {[%emt 0:01:43]} 24. a3 {[%emt 0:01:19]} Ra8 {[%emt 0:01:17]} 25. Nf1 {[%emt 0:02:30]} Kf7 {[%emt 0:01:06]} 26. Ne3 {[%emt 0:00:30]} Be6 {[%emt 0:00:12]} 27. a4 {[%emt 0:02:46]} Rb8 {[%emt 0:05:26]} 28. Ra1 {[%emt 0:00:46]} Ke7 {[%emt 0:01:02]} 29. Nc2 {[%emt 0:02:39]} Bd7 {[%emt 0:02:07]} 30. Ne3 {[%emt 0:00:11]} Be6 {[%emt 0:00:48]} 31. Nc2 {[%emt 0:00:05]} g6 {[%emt 0:00:28]} 32. Na3 {[%emt 0:00:08]} Kd7 {[%emt 0:05:03]} 33. Nb5 {[%emt 0:00:24]} Be7 {[%emt 0:01:09]} 34. Re1 {[%emt 0:01:33]} Bf6 {[%emt 0:00:27]} 35. Bd2 {[%emt 0:01:40]} g5 {[%emt 0:01:15]} 36. f4 {[%emt 0:02:39]} gxf4 {[%emt 0:02:02]} 37. Bxf4 {[%emt 0:00:03]} Rg8 {[%emt 0:00:09]} 38. Kh2 {[%emt 0:00:44]} Bf5 {[%emt 0:01:51]} 39. Bc7 {[%emt 0:01:53]} Be4 {[%emt 0:03:37]} 40. Bg3 {[%emt 0:01:24]} Bc2 {[%emt 0:04:53]} 41. Nc3 {[%emt 0:00:23]} Bxd4 {[%emt 0:01:48]} 42. Nxd5 {[%emt 0:00:08]} Rg5 {[%emt 0:04:04]} 43. Re7+ {[%emt 0:04:13]} Kc6 {[%emt 0:00:41]} 44. Nc3 {[%emt 0:00:18]} Kc5 {[%emt 0:03:59]} 45. Rd7 {[%emt 0:07:02]} h5 {[%emt 0:05:21]} 46. Bh4 {[%emt 0:03:10]} Bxc3 {[%emt 0:05:10]} 47. Bxg5 {[%emt 0:02:05]} Be5+ {[%emt 0:01:57]} 48. Kg1 {[%emt 0:00:14]} Bxa4 {[%emt 0:00:24]} 49. Be3+ {[%emt 0:00:21]} Kc6 {[%emt 0:00:47]} 50. Rh7 {[%emt 0:00:07]} b5 {[%emt 0:00:46]} 51. Rxh5 {[%emt 0:00:09]} Bxb2 {[%emt 0:00:23]} 52. Kf2 {[%emt 0:00:59]} c3 {[%emt 0:01:06]} 53. Bd4 {[%emt 0:00:16]} Kd6 {[%emt 0:02:55]} 54. Ke2 {[%emt 0:00:55]} Bb3 {[%emt 0:00:51]} 55. Rf5 {[%emt 0:05:33]} a4 {[%emt 0:01:27]} 56. Kd3 {[%emt 0:03:27]} Bc4+ {[%emt 0:01:58]} 57. Kc2 {[%emt 0:00:10]} b4 {[%emt 0:00:39]} 58. Bc5+ {[%emt 0:04:33]} Ke6 {[%emt 0:00:05]} 59. Bxb4 {[%emt 0:00:05]} Bb3+ {[%emt 0:01:07]} 60. Kd3 {[%emt 0:00:18]} Kxf5 {[%emt 0:00:50]} 61. Bxc3 {[%emt 0:00:09]} a3 {[%emt 0:00:21]} 62. g3 {[%emt 0:00:55]} Kg5 {[%emt 0:03:00]} 63. Kd2 {[%emt 0:00:10]} Kg6 {[%emt 0:00:44]} 64. Kd3 {[%emt 0:00:13]} Kf5 {[%emt 0:00:09]} 65. Kd2 {[%emt 0:01:29]} Ke4 {[%emt 0:00:32]} 66. g4 {[%emt 0:00:54]} Kd5 {[%emt 0:03:15]} 67. g5 {[%emt 0:00:53]} Kc4 {[%emt 0:00:31]} 68. Bf6 {[%emt 0:02:19]} Kb4 {[%emt 0:01:45]} 69. Be7+ {[%emt 0:01:11]} Kc4 {[%emt 0:00:29]} 70. Bf6 {[%emt 0:01:01]} Kb5 {[%emt 0:01:11]} 71. Bc3 {[%emt 0:00:22]} Ka4 {[%emt 0:00:43]} 72. g6 {[%emt 0:00:28]} Be6 {[%emt 0:00:22]} 0-1

[Event "Guimaraes Open 2019"]
[Site "Guimaraes"]
[Date "2019.09.01"]
[Round "7.11"]
[White "Martins, Diogo Faria Oliveira"]
[Black "Forgas Moreno, Yaniela"]
[Result "0-1"]
[ECO "B94"]
[WhiteElo "1984"]
[BlackElo "2276"]
[Annotator "NA"]
[PlyCount "82"]
[EventDate "2019.08.28"]
[EventType "swiss"]
[EventCountry "POR"]
[SourceTitle "playchess.com"]
[Source "ChessBase"]
[SourceQuality "1"]
[TimeControl "5400+30"]

1. e4 {[%emt 0:00:15]} c5 {[%emt 0:00:00]} 2. Nf3 {[%emt 0:00:29]} d6 {[%emt 0:00:00]} 3. d4 {[%emt 0:00:08]} Nf6 {[%emt 0:00:12]} 4. Nc3 {[%emt 0:00:19]} cxd4 {[%emt 0:00:07]} 5. Nxd4 {[%emt 0:00:08]} a6 {[%emt 0:00:03]} 6. Bg5 {[%emt 0:00:43]} Nbd7 {[%emt 0:00:13]} 7. Qe2 {[%emt 0:02:35]} h6 {[%emt 0:01:02]} 8. Bh4 {[%emt 0:01:08]} Qa5 {[%emt 0:00:19]} 9. O-O-O {[%emt 0:03:02]} e6 {[%emt 0:00:31]} 10. f4 {[%emt 0:01:21]} Be7 {[%emt 0:06:56]} 11. Nb3 {[%emt 0:01:59]} Qc7 {[%emt 0:01:27]} 12. Bg3 {[%emt 0:00:47]} g6 {[%emt 0:02:55]} 13. f5 {[%emt 0:02:18]} Ne5 {[%emt 0:01:17]} 14. Bxe5 {[%emt 0:02:37]} dxe5 {[%emt 0:00:07]} 15. fxg6 {[%emt 0:00:47]} fxg6 {[%emt 0:00:12]} 16. g3 {[%emt 0:02:10]} b5 {[%emt 0:04:39]} 17. Bh3 {[%emt 0:14:18]} Bd7 {[%emt 0:04:39]} 18. Rxd7 {[%emt 0:10:26]} Qxd7 {[%emt 0:01:08]} 19. Nd5 {[%emt 0:00:15]} Nxd5 {[%emt 0:12:52]} 20. exd5 {[%emt 0:00:03]} Qxd5 {[%emt 0:00:18]} 21. Bg2 {[%emt 0:00:42]} e4 {[%emt 0:00:03]} 22. Bxe4 {[%emt 0:03:54]} Qg5+ {[%emt 0:00:06]} 23. Kb1 {[%emt 0:00:35]} Rd8 {[%emt 0:00:33]} 24. h4 {[%emt 0:08:52]} Qxg3 {[%emt 0:02:22]} 25. Bc6+ {[%emt 0:02:04]} Kf7 {[%emt 0:01:33]} 26. Rf1+ {[%emt 0:00:40]} Bf6 {[%emt 0:00:50]} 27. h5 {[%emt 0:01:57]} Rd6 {[%emt 0:04:49]} 28. Nc5 {[%emt 0:02:36]} Ke7 {[%emt 0:08:12]} 29. Rxf6 {[%emt 0:05:47]} Qg1+ {[%emt 0:00:06]} 30. Rf1 {[%emt 0:00:10]} Qxc5 {[%emt 0:00:12]} 31. hxg6 {[%emt 0:00:44]} Rxc6 {[%emt 0:01:34]} 32. Rf7+ {[%emt 0:03:27]} Ke8 {[%emt 0:00:34]} 33. Qd3 {[%emt 0:01:23]} Rc7 {[%emt 0:07:26]} 34. a3 {[%emt 0:03:46]} Rxf7 {[%emt 0:01:09]} 35. gxf7+ {[%emt 0:00:03]} Kxf7 {[%emt 0:00:10]} 36. Qf3+ {[%emt 0:00:25]} Qf5 {[%emt 0:00:38]} 37. Qb7+ {[%emt 0:00:06]} Kf6 {[%emt 0:00:25]} 38. Qxa6 {[%emt 0:00:10]} Qf1+ {[%emt 0:00:21]} 39. Ka2 {[%emt 0:00:06]} Qc4+ {[%emt 0:00:05]} 40. Kb1 {[%emt 0:00:21]} Rd8 {[%emt 0:00:46]} 41. b3 {[%emt 0:00:04]} Rd1+ {[%emt 0:00:10]} 0-1

[Event "Guimaraes Open 2019"]
[Site "Guimaraes"]
[Date "2019.09.01"]
[Round "7.12"]
[White "Camarena Jimenez, Rufino"]
[Black "Hernandez Torralba, Jose Joaquin"]
[Result "1-0"]
[ECO "D85"]
[WhiteElo "2317"]
[BlackElo "2061"]
[Annotator "ChessBase"]
[PlyCount "71"]
[EventDate "2019.08.28"]
[EventType "swiss"]
[EventCountry "POR"]
[SourceTitle "playchess.com"]
[Source "ChessBase"]
[SourceQuality "1"]
[TimeControl "5400+30"]

1. d4 {[%emt 0:00:00]} Nf6 {[%emt 0:01:18]} 2. c4 {[%emt 0:00:00]} g6 {[%emt 0:00:09]} 3. Nc3 {[%emt 0:00:10]} d5 {[%emt 0:00:09]} 4. cxd5 {[%emt 0:00:38]} Nxd5 {[%emt 0:00:08]} 5. e4 {[%emt 0:00:03]} Nxc3 {[%emt 0:00:08]} 6. bxc3 {[%emt 0:00:03]} Bg7 {[%emt 0:00:08]} 7. Qa4+ {[%emt 0:00:09]} Nd7 {[%emt 0:04:20]} 8. Nf3 {[%emt 0:00:41]} c5 {[%emt 0:02:52]} 9. Bg5 {[%emt 0:04:37]} O-O {[%emt 0:04:25]} 10. Rd1 {[%emt 0:02:20]} h6 {[%emt 0:07:54]} 11. Be3 {[%emt 0:03:38]} cxd4 {[%emt 0:01:46]} 12. cxd4 {[%emt 0:00:09]} Nb6 {[%emt 0:00:34]} 13. Qa5 {[%emt 0:11:39]} Be6 {[%emt 0:11:33]} 14. d5 {[%emt 0:06:43]} Bg4 {[%emt 0:00:08]} 15. Be2 {[%emt 0:03:40]} Qd7 {[%emt 0:11:00]} 16. O-O {[%emt 0:10:57]} Bxf3 {[%emt 0:02:27]} 17. gxf3 {[%emt 0:11:16]} g5 {[%emt 0:04:54]} 18. Kg2 {[%emt 0:02:12]} Be5 {[%emt 0:06:59]} 19. h4 {[%emt 0:06:15]} f6 {[%emt 0:15:05]} 20. Rh1 {[%emt 0:01:16]} Kg7 {[%emt 0:01:54]} 21. Rdg1 {[%emt 0:09:05]} Bc7 {[%emt 0:06:09]} 22. Qd2 {[%emt 0:00:53]} Rg8 {[%emt 0:04:18]} 23. Kf1 {[%emt 0:02:27]} Kf7 {[%emt 0:01:01]} 24. hxg5 {[%emt 0:02:01]} hxg5 {[%emt 0:00:07]} 25. f4 {[%emt 0:01:39]} g4 {[%emt 0:03:54]} 26. Rh7+ {[%emt 0:03:44]} Ke8 {[%emt 0:00:38]} 27. f5 {[%emt 0:03:11]} Qa4 {[%emt 0:01:23]} 28. d6 {[%emt 0:06:17]} Nc4 {[%emt 0:06:08]} 29. Rxe7+ {[%emt 0:01:23]} Kd8 {[%emt 0:00:07]} 30. Bxc4 {[%emt 0:01:16]} Qxc4+ {[%emt 0:00:11]} 31. Kg2 {[%emt 0:00:28]} Bb6 {[%emt 0:02:08]} 32. Rc1 {[%emt 0:01:29]} Qb5 {[%emt 0:00:49]} 33. Qc3 {[%emt 0:02:15]} Rf8 {[%emt 0:01:00]} 34. Bxb6+ {[%emt 0:00:28]} Qxb6 {[%emt 0:00:07]} 35. Qc7+ {[%emt 0:00:36]} Qxc7 {[%emt 0:00:06]} 36. Rcxc7 {[%emt 0:00:06]} 1-0

[Event "Guimaraes Open 2019"]
[Site "Guimaraes"]
[Date "2019.09.01"]
[Round "7.13"]
[White "Rodrigues, Afonso"]
[Black "Tilicheev, Viacheslav"]
[Result "0-1"]
[ECO "A80"]
[WhiteElo "2134"]
[BlackElo "2482"]
[Annotator "ChessBase"]
[PlyCount "66"]
[EventDate "2019.08.28"]
[EventType "swiss"]
[EventCountry "POR"]
[SourceTitle "playchess.com"]
[Source "ChessBase"]
[SourceQuality "1"]
[TimeControl "5400+30"]

1. d4 {[%emt 0:00:46]} f5 {[%emt 0:00:00]} 2. Bf4 {[%emt 0:00:37]} Nf6 {[%emt 0:00:00]} 3. e3 {[%emt 0:00:06]} e6 {[%emt 0:00:00]} 4. Nf3 {[%emt 0:01:06]} Be7 {[%emt 0:00:00]} 5. h3 {[%emt 0:00:31]} O-O {[%emt 0:00:00]} 6. Bd3 {[%emt 0:01:20]} b6 {[%emt 0:00:18]} 7. g4 {[%emt 0:07:17]} Nd5 {[%emt 0:00:38]} 8. Bh2 {[%emt 0:17:17]} Bb7 {[%emt 0:00:02]} 9. Nbd2 {[%emt 0:12:54]} f4 {[%emt 0:02:52]} 10. e4 {[%emt 0:03:11]} Nb4 {[%emt 0:00:04]} 11. Qe2 {[%emt 0:05:20]} c5 {[%emt 0:01:32]} 12. c3 {[%emt 0:03:16]} Nxd3+ {[%emt 0:00:04]} 13. Qxd3 {[%emt 0:00:08]} cxd4 {[%emt 0:00:23]} 14. Nxd4 {[%emt 0:02:18]} Nc6 {[%emt 0:00:19]} 15. Nxc6 {[%emt 0:03:55]} Bxc6 {[%emt 0:01:33]} 16. O-O-O {[%emt 0:01:00]} b5 {[%emt 0:00:04]} 17. f3 {[%emt 0:01:23]} e5 {[%emt 0:00:30]} 18. Kb1 {[%emt 0:01:00]} Qc7 {[%emt 0:00:13]} 19. Bg1 {[%emt 0:04:47]} Rfd8 {[%emt 0:00:04]} 20. Bf2 {[%emt 0:03:14]} d5 {[%emt 0:01:17]} 21. Qc2 {[%emt 0:00:46]} Qb7 {[%emt 0:01:46]} 22. Rhe1 {[%emt 0:01:09]} Rac8 {[%emt 0:00:24]} 23. exd5 {[%emt 0:05:37]} Bxd5 {[%emt 0:00:14]} 24. Qf5 {[%emt 0:00:08]} Qa6 {[%emt 0:01:40]} 25. a3 {[%emt 0:00:27]} Bxa3 {[%emt 0:01:45]} 26. Qxe5 {[%emt 0:07:43]} Ba2+ {[%emt 0:06:20]} 27. Kc2 {[%emt 0:02:17]} Bd6 {[%emt 0:00:07]} 28. Qe4 {[%emt 0:01:54]} b4 {[%emt 0:00:25]} 29. Bd4 {[%emt 0:01:54]} Qa4+ {[%emt 0:07:47]} 30. Kd3 {[%emt 0:00:38]} bxc3 {[%emt 0:01:45]} 31. bxc3 {[%emt 0:00:07]} Bf7 {[%emt 0:07:15]} 32. Qb7 {[%emt 0:02:04]} Rb8 {[%emt 0:00:30]} 33. Qxa7 {[%emt 0:03:32]} Qxa7 {[%emt 0:00:04]} 0-1

[Event "Guimaraes Open 2019"]
[Site "Guimaraes"]
[Date "2019.09.01"]
[Round "7.15"]
[White "Garcia Moreno, Carlos"]
[Black "Gomez Peco, David"]
[Result "0-1"]
[ECO "B31"]
[WhiteElo "2292"]
[BlackElo "2104"]
[Annotator "ChessBase"]
[PlyCount "94"]
[EventDate "2019.08.28"]
[EventType "swiss"]
[EventCountry "POR"]
[SourceTitle "playchess.com"]
[Source "ChessBase"]
[SourceQuality "1"]
[TimeControl "5400+30"]

1. e4 {[%emt 0:00:00]} c5 {[%emt 0:04:33]} 2. Nf3 {[%emt 0:00:00]} Nc6 {[%emt 0:00:12]} 3. Bb5 {[%emt 0:00:21]} g6 {[%emt 0:01:45]} 4. O-O {[%emt 0:00:59]} Bg7 {[%emt 0:00:26]} 5. c3 {[%emt 0:01:29]} e5 {[%emt 0:04:58]} 6. Re1 {[%emt 0:04:29]} Nge7 {[%emt 0:03:50]} 7. b4 {[%emt 0:37:02]} cxb4 {[%emt 0:10:09]} 8. cxb4 {[%emt 0:00:02]} O-O {[%emt 0:01:21]} 9. Nc3 {[%emt 0:07:38]} d6 {[%emt 0:03:10]} 10. Rb1 {[%emt 0:06:25]} Bg4 {[%emt 0:04:46]} 11. Be2 {[%emt 0:06:41]} d5 {[%emt 0:06:17]} 12. exd5 {[%emt 0:10:06]} Nxd5 {[%emt 0:01:32]} 13. b5 {[%emt 0:01:04]} Nce7 {[%emt 0:02:12]} 14. Ba3 {[%emt 0:06:28]} Re8 {[%emt 0:04:29]} 15. Qa4 {[%emt 0:08:14]} Nf4 {[%emt 0:03:28]} 16. Bf1 {[%emt 0:04:21]} Bxf3 {[%emt 0:01:08]} 17. gxf3 {[%emt 0:00:01]} Nf5 {[%emt 0:00:27]} 18. Ne4 {[%emt 0:01:46]} Nd4 {[%emt 0:01:01]} 19. Re3 {[%emt 0:00:15]} f5 {[%emt 0:01:56]} 20. Nd6 {[%emt 0:00:28]} Re6 {[%emt 0:03:21]} 21. Nxb7 {[%emt 0:00:50]} Qg5+ {[%emt 0:00:31]} 22. Kh1 {[%emt 0:00:01]} Qh4 {[%emt 0:00:33]} 23. Nc5 {[%emt 0:00:39]} Ree8 {[%emt 0:08:51]} 24. Nd3 {[%emt 0:01:11]} Nxd3 {[%emt 0:00:39]} 25. Rxd3 {[%emt 0:00:17]} Qxf2 {[%emt 0:00:32]} 26. Bc5 {[%emt 0:00:38]} Rad8 {[%emt 0:03:34]} 27. Bxa7 {[%emt 0:00:41]} Bh6 {[%emt 0:01:58]} 28. Qd1 {[%emt 0:01:02]} Bf4 {[%emt 0:00:20]} 29. Bg2 {[%emt 0:00:21]} Qh4 {[%emt 0:00:40]} 30. h3 {[%emt 0:00:24]} Qg3 {[%emt 0:00:32]} 31. Qg1 {[%emt 0:00:20]} Ne2 {[%emt 0:00:29]} 32. Rxd8 {[%emt 0:00:06]} Nxg1 {[%emt 0:00:11]} 33. Rxe8+ {[%emt 0:00:03]} Kf7 {[%emt 0:00:13]} 34. Bxg1 {[%emt 0:00:03]} Kxe8 {[%emt 0:00:17]} 35. d3 {[%emt 0:00:35]} e4 {[%emt 0:00:29]} 36. dxe4 {[%emt 0:00:04]} fxe4 {[%emt 0:00:09]} 37. fxe4 {[%emt 0:00:27]} Qd3 {[%emt 0:02:26]} 38. Rb3 {[%emt 0:00:21]} Qc2 {[%emt 0:00:08]} 39. Ra3 {[%emt 0:01:03]} Qc1 {[%emt 0:01:07]} 40. Rf3 {[%emt 0:01:08]} Be5 {[%emt 0:00:48]} 41. b6 {[%emt 0:00:40]} Qb1 {[%emt 0:01:44]} 42. Rb3 {[%emt 0:01:30]} Qxa2 {[%emt 0:02:13]} 43. Rb5 {[%emt 0:00:01]} Qa1 {[%emt 0:00:53]} 44. b7 {[%emt 0:00:20]} Bb8 {[%emt 0:00:26]} 45. e5 {[%emt 0:01:19]} Ke7 {[%emt 0:01:07]} 46. Rb3 {[%emt 0:00:29]} Ba7 {[%emt 0:01:18]} 47. Bf1 {[%emt 0:00:37]} Qxf1 {[%emt 0:00:39]} 0-1

[Event "Guimaraes Open 2019"]
[Site "Guimaraes"]
[Date "2019.09.01"]
[Round "7.16"]
[White "Redondo Arguelles, Graciela"]
[Black "Alonso Garcia, Aaron"]
[Result "0-1"]
[ECO "B06"]
[WhiteElo "2021"]
[BlackElo "2291"]
[Annotator "NA"]
[PlyCount "108"]
[EventDate "2019.08.28"]
[EventType "swiss"]
[EventCountry "POR"]
[SourceTitle "playchess.com"]
[Source "ChessBase"]
[SourceQuality "1"]
[TimeControl "5400+30"]

1. e4 {[%emt 0:01:35]} g6 {[%emt 0:00:28]} 2. d4 {[%emt 0:00:50]} Bg7 {[%emt 0:00:04]} 3. c3 {[%emt 0:01:15]} d6 {[%emt 0:02:32]} 4. Nf3 {[%emt 0:01:15]} Nf6 {[%emt 0:03:43]} 5. Bd3 {[%emt 0:01:34]} O-O {[%emt 0:02:00]} 6. O-O {[%emt 0:00:29]} Nc6 {[%emt 0:02:34]} 7. h3 {[%emt 0:03:14]} e5 {[%emt 0:00:49]} 8. Be3 {[%emt 0:14:12]} Nh5 {[%emt 0:13:52] B07: Pirc Defence: Miscellaneous Systems} (8... h6 9. Nbd2 Nh5 10. dxe5 dxe5 11. Bb5 Qf6 12. Nc4 a6 13. Bxc6 Qxc6 14. Qd5 Qe8 15. Ncxe5 Nf6 16. Qc4 {½-½ (94) Grigoryan,K (2602)-Petrosian,T (2625) Yerevan 2015}) 9. dxe5 {[%emt 0:01:57]} dxe5 {[%emt 0:01:13]} 10. Bc4 {[%emt 0:00:12]} Na5 $146 {[%emt 0:07:40]} ({Predecessor:} 10... Qe7 11. b4 b6 12. Bd5 Bb7 {½-½ (35) Porwol,A (2116)-Gorol,J Poland 2008}) 11. Bb5 {[%emt 0:15:48]} a6 {[%emt 0:01:56]} 12. Ba4 {[%emt 0:04:28]} b5 {[%emt 0:13:02]} 13. Bc2 {[%emt 0:00:44]} Bb7 {[%emt 0:01:04]} 14. Nbd2 {[%emt 0:01:43]} Nf4 {[%emt 0:00:51]} 15. b4 {[%emt 0:00:35]} Nc4 {[%emt 0:05:45]} 16. Nxc4 {[%emt 0:06:59]} bxc4 {[%emt 0:00:05]} 17. Nd2 {[%emt 0:00:07]} Qd7 {[%emt 0:01:47]} 18. Nxc4 {[%emt 0:09:24]} Qb5 {[%emt 0:06:45]} 19. Na3 {[%emt 0:13:34]} Ne2+ {[%emt 0:03:09]} 20. Kh2 {[%emt 0:00:29]} Nxc3 {[%emt 0:00:04]} 21. Nxb5 {[%emt 0:00:19]} Nxd1 {[%emt 0:00:05]} 22. Rfxd1 {[%emt 0:01:24]} axb5 {[%emt 0:00:04]} 23. Rd7 {[%emt 0:00:09]} Rac8 {[%emt 0:00:24]} 24. f3 {[%emt 0:03:45]} Rfd8 {[%emt 0:10:48]} 25. Rad1 {[%emt 0:00:26]} Rxd7 {[%emt 0:00:04]} 26. Rxd7 {[%emt 0:00:03]} Bc6 {[%emt 0:00:05]} 27. Rd3 {[%emt 0:00:28]} Bf8 {[%emt 0:00:58]} 28. a3 {[%emt 0:01:37]} Bd6 {[%emt 0:01:43]} 29. Bh6 $11 {[%emt 0:01:09]} f5 {[%emt 0:03:36]} 30. Bb3+ {[%emt 0:03:42]} Kh8 {[%emt 0:00:01]} 31. exf5 {[%emt 0:00:07]} gxf5 {[%emt 0:01:25]} 32. Kg1 {[%emt 0:03:06]} Bd7 {[%emt 0:00:38]} 33. g4 {[%emt 0:03:30]} Ra8 {[%emt 0:04:08]} 34. Bd5 Ra6 {[%emt 0:00:07]} 35. Be3 {[%emt 0:02:53]} Bc6 {[%emt 0:04:22]} 36. Be6 {[%emt 0:01:23]} f4 {[%emt 0:01:42]} 37. Bf2 {[%emt 0:00:18]} Kg7 {[%emt 0:00:18]} 38. Rc3 {[%emt 0:01:34]} Kf8 {[%emt 0:06:14]} 39. Bc8 {[%emt 0:00:59]} Ra8 {[%emt 0:00:01]} 40. Bf5 {[%emt 0:00:05]} Bd5 {[%emt 0:01:28]} 41. Bxh7 {[%emt 0:00:05]} Ke7 {[%emt 0:01:07]} 42. Be4 {[%emt 0:00:40]} c6 {[%emt 0:00:35]} 43. Bh4+ {[%emt 0:01:25]} Kf7 {[%emt 0:00:24]} 44. Rd3 {[%emt 0:00:59]} Rh8 {[%emt 0:00:42]} 45. Bxd5+ {[%emt 0:00:50]} cxd5 {[%emt 0:00:01]} 46. Rxd5 {[%emt 0:00:09]} Ke6 {[%emt 0:00:01]} 47. Rxb5 {[%emt 0:00:25]} Rxh4 {[%emt 0:00:01]} 48. Kg2 {[%emt 0:00:06]} Rh8 {[%emt 0:00:01]} 49. a4 {[%emt 0:00:34]} Rc8 {[%emt 0:00:04]} 50. Rb7 {[%emt 0:00:15]} Rc2+ {[%emt 0:01:19]} 51. Kf1 {[%emt 0:00:55]} e4 {[%emt 0:01:31]} 52. fxe4 {[%emt 0:00:16]} f3 {[%emt 0:00:00]} 53. Rb5 {[%emt 0:01:00]} Bg3 {[%emt 0:00:30]} 54. Rf5 {[%emt 0:00:22]} Rc1# 0-1